fUSD/lending_fUSD_20260322
["ID","MTS","AMOUNT","RATE_DAILY","PERIOD"]
[408715267,1774165847191,-300.3537239,0.00042427,2]
[408715268,1774165847201,-300.0,0.00042427,2]
[408715269,1774165847211,-300.0,0.00042427,2]
[408715270,1774165847220,-1138.86212569,0.00042427,2]
[408715271,1774165847229,-307.35924896,0.00042427,2]
[408715272,1774165847239,-300.0,0.00042427,2]
[408715273,1774165847249,-858.24055709,0.00042427,2]
[408715274,1774165847258,-300.0,0.00042427,2]
[408715275,1774165847268,-300.0,0.00042427,2]
[408715276,1774165847278,-300.0,0.00042427,2]
[408715277,1774165847288,-300.0,0.00042427,2]
[408715278,1774165847298,-308.63412797,0.00042427,2]
[408715279,1774165847309,-300.0,0.00042427,2]
[408715280,1774165847319,-300.0,0.00042427,2]
[408715281,1774165847329,-300.0,0.00042427,2]
[408715282,1774165847339,-460.5100828,0.00042427,2]
[408715283,1774165847349,-300.0,0.00042427,2]
[408715284,1774165847359,-300.0,0.00042427,2]
[408715285,1774165847368,-300.0,0.00042427,2]
[408715286,1774165847378,-448.59580951,0.00042427,2]
[408715287,1774165847389,-300.0,0.00042427,2]
[408715288,1774165847399,-300.0,0.00042427,2]
[408715289,1774165847409,-302.71758979,0.00042427,2]
[408715290,1774165847418,-300.0,0.00042427,2]
[408715291,1774165847427,-300.0,0.00042427,2]
[408715292,1774165847436,-300.0,0.00042427,2]
[408715293,1774165847445,-520.90741423,0.00042427,2]
[408715294,1774165847454,-1093.0,0.00042478,30]
[408715295,1774165847464,-5800.0,0.0004263,14]
[408715296,1774165847473,-5800.0,0.00042639,14]
[408715297,1774165847482,-5800.0,0.00042647,14]
[408715298,1774165847491,-5113.74212955,0.00042655,7]
[408715299,1774165847500,-5000.0,0.00042655,10]
[408715300,1774165847509,-5000.0,0.00042655,7]
[408715301,1774165847519,-5000.0,0.00042655,11]
[408715302,1774165847530,-3514.0,0.0004269,2]
[408715303,1774165847539,-2466.0,0.0004269,2]
[408715304,1774165847548,-236.81,0.000427,30]
[408715305,1774165847558,-1402.13,0.00042908,120]
[408715306,1774165847567,-414.26,0.00042947,90]
[408715307,1774165847576,-231.0,0.0004295,30]
[408715308,1774165847586,-1402.13,0.00043182,120]
[408715309,1774165847595,-1093.0,0.00043288,30]
[408715310,1774165847604,-362.72905046,0.00043333,30]
[408715311,1774165847614,-1402.14,0.00043456,120]
[408715312,1774165847624,-150.0,0.0004356,30]
[408715313,1774165847633,-2000.0,0.000437,2]
[408715314,1774165847642,-250.66,0.000437,30]
[408715315,1774165847652,-1000.0,0.00043836,18]
[408715316,1774165847660,-500.0,0.00043836,10]
[408715317,1774165847670,-1998.73,0.000439,30]
[408715318,1774165847679,-150.0,0.00043906,30]
[408715319,1774165847688,-372.50511899,0.00044,2]
[408715320,1774165847700,-150.0,0.00044251,30]
[408715321,1774165847709,-494.50541069,0.00044491,2]
[408715322,1774165847719,-1000.0,0.00044491,2]
[408715323,1774165847728,-1515.31187087,0.00044491,2]
[408715324,1774165847739,-150.0,0.00044597,30]
[408715325,1774165847749,-500.0,0.00044682,120]
[408715326,1774165847758,-500.0,0.00044682,120]
[408715327,1774165847768,-500.0,0.00044682,120]
[408715328,1774165847789,-471.73,0.000447,30]
[408715329,1774165847799,-37118.03,0.000448,7]
[408715330,1774165847809,-1619.18092592,0.00044892,2]
[408715331,1774165847819,-150.0,0.00044943,30]
[408715332,1774165847828,-231.0,0.0004496,30]
[408715333,1774165847838,-231.0,0.0004496,30]
[408715334,1774165847847,-372.0,0.00045,30]
[408715335,1774165847856,-503.25696603,0.00045,2]
[408715336,1774165847866,-363.98,0.00045,120]
[408715337,1774165847875,-1000996.24079084,0.00045,30]
[408715338,1774165847884,-150.0,0.00045289,30]
[408715339,1774165847895,-1206.28802993,0.00045377,120]
[408715340,1774165847905,-660.88,0.000454,30]
[408715341,1774165847915,-362.72905046,0.00045556,30]
[408715342,1774165847924,-827.97,0.000456,30]
[408715343,1774165847934,-150.0,0.00045634,30]
[408715344,1774165847944,-2376.90599374,0.00045684,120]
[408715345,1774165847953,-3514.0,0.0004569,2]
[408715346,1774165847963,-2466.0,0.0004569,2]
[408715347,1774165847973,-500.0,0.00045778,120]
[408715348,1774165847983,-500.0,0.00045778,120]
[408715349,1774165847992,-500.0,0.00045778,120]
[408715350,1774165848001,-549.57411,0.0004582,120]
[408715351,1774165848010,-549.57411,0.0004582,120]
[408715352,1774165848019,-549.57411,0.0004582,120]
[408715353,1774165848029,-549.57411,0.0004582,120]
[408715354,1774165848038,-549.57411,0.0004582,120]
[408715355,1774165848047,-475.75812515,0.0004587,120]
[408715356,1774165848057,-10265.07525548,0.0004587,2]
[408715357,1774165848070,-538697.3994396,0.00045926,2]
[408715358,1774165848082,-150.0,0.0004598,30]
[408715359,1774165848092,-372.0,0.00046,30]
[408715360,1774165848102,-967.19143228,0.0004608,18]
[408715361,1774165848111,-967.19143228,0.0004608,18]
[408715362,1774165848121,-967.19143228,0.0004608,18]
[408715363,1774165848131,-967.19143228,0.0004608,18]
[408715364,1774165848145,-967.19143228,0.0004608,18]
[408715365,1774165848155,-967.19143228,0.0004608,18]
[408715366,1774165848165,-967.19143228,0.0004608,18]
[408715367,1774165848175,-190.086674,0.00046136,7]
[408715368,1774165848184,-1491.233102,0.00046136,7]
[408715369,1774165848194,-1000.0,0.00046197,14]
[408715370,1774165848204,-236.81,0.000462,30]
[408715371,1774165848213,-150.0,0.00046279,2]
[408715372,1774165848223,-549.57411,0.0004628,120]
[408715373,1774165848233,-10000.0,0.00046299,2]
[408715374,1774165848243,-559.01632212,0.00046323,7]
[408715375,1774165848253,-150.0,0.00046326,30]
[408715376,1774165848263,-245.41300129,0.00046326,2]
[408715377,1774165848273,-160.0,0.00046333,120]
[408715378,1774165848283,-160.0,0.00046333,120]
[408715379,1774165848292,-151.0,0.00046333,120]
[408715380,1774165848302,-160.0,0.00046333,120]
[408715381,1774165848311,-222.90548411,0.00046333,120]
[408715382,1774165848321,-151.0,0.00046333,120]
[408715383,1774165848330,-153.78487307,0.00046333,120]
[408715384,1774165848342,-1521.0,0.00046333,120]
[408715385,1774165848352,-1521.0,0.00046333,120]
[408715386,1774165848362,-456.12817696,0.00046333,120]
[408715387,1774165848372,-226.61972177,0.00046333,120]
[408715388,1774165848382,-153.0,0.00046333,120]
[408715389,1774165848392,-239.0021021,0.00046333,120]
[408715390,1774165848401,-259.066,0.00046333,120]
[408715391,1774165848411,-200.0,0.00046349,120]
[408715392,1774165848420,-957.30802572,0.00046388,30]
[408715393,1774165848431,-156.80204225,0.00046455,2]
[408715394,1774165848440,-4999.71874,0.00046464,30]
[408715395,1774165848451,-100000.0,0.000465,8]
[408715396,1774165848461,-21871.44978661,0.000465,7]
[408715397,1774165848471,-156.88931536,0.000465,30]
[408715398,1774165848481,-39769.87,0.000465,6]
[408715399,1774165848490,-11434.39,0.000465,6]
[408715400,1774165848500,-10530.06,0.000465,6]
[408715401,1774165848509,-27588.68,0.000465,6]
[408715402,1774165848519,-394.0384,0.00046575,2]
[408715403,1774165848529,-500.0,0.00046575,2]
[408715404,1774165848539,-500.0,0.00046575,2]
[408715405,1774165848552,-506.1116,0.00046575,2]
[408715406,1774165848562,-500.0,0.00046575,2]
[408715407,1774165848572,-500.0,0.00046575,2]
[408715408,1774165848581,-500.0,0.00046575,2]
[408715409,1774165848591,-500.0,0.00046575,2]
[408715410,1774165848600,-500.0,0.00046575,2]
[408715411,1774165848610,-500.0,0.00046575,2]
[408715412,1774165848619,-500.0,0.00046575,2]
[408715413,1774165848630,-500.0,0.00046575,2]
[408715414,1774165848640,-500.0,0.00046575,2]
[408715415,1774165848650,-500.0,0.00046575,2]
[408715416,1774165848660,-438.0874,0.00046575,2]
[408715417,1774165848670,-1556.2,0.00046575,2]
[408715418,1774165848680,-1556.2,0.00046575,2]
[408715419,1774165848690,-1556.2,0.00046575,2]
[408715420,1774165848703,-1556.2,0.00046575,2]
[408715421,1774165848712,-1556.2,0.00046575,2]
[408715422,1774165848722,-1556.2,0.00046575,2]
[408715423,1774165848732,-1556.2,0.00046575,2]
[408715424,1774165848743,-1556.2,0.00046575,2]
[408715425,1774165848756,-1556.2,0.00046575,2]
[408715426,1774165848765,-1556.2,0.00046575,2]
[408715427,1774165848776,-1556.2,0.00046575,2]
[408715428,1774165848786,-1556.2,0.00046575,2]
[408715429,1774165848796,-1556.2,0.00046575,2]
[408715430,1774165848806,-1556.2,0.00046575,2]
[408715431,1774165848815,-1556.2,0.00046575,2]
[408715432,1774165848825,-1556.2,0.00046575,2]
[408715433,1774165848835,-1556.2,0.00046575,2]
[408715434,1774165848845,-1556.2,0.00046575,2]
[408715435,1774165848855,-1556.2,0.00046575,2]
[408715436,1774165848865,-1556.2,0.00046575,2]
[408715437,1774165848874,-1556.2,0.00046575,2]
[408715438,1774165848884,-1556.2,0.00046575,2]
[408715439,1774165848893,-1556.2,0.00046575,2]
[408715440,1774165848903,-1556.34450725,0.00046575,2]
[408715441,1774165848912,-500.0,0.00046575,120]
[408715442,1774165848922,-500.0,0.00046575,120]
[408715443,1774165848932,-500.0,0.00046575,120]
[408715444,1774165848946,-500.0,0.00046575,120]
[408715445,1774165848957,-500.0,0.00046575,120]
[408715446,1774165848967,-500.0,0.00046575,120]
[408715447,1774165848977,-500.0,0.00046575,120]
[408715448,1774165848987,-500.0,0.00046575,120]
[408715449,1774165848997,-500.0,0.00046575,120]
[408715450,1774165849008,-427.42297631,0.00046575,120]
[408715451,1774165849020,-500.0,0.00046575,120]
[408715452,1774165849032,-500.0,0.00046575,120]
[408715453,1774165849043,-500.0,0.00046575,120]
[408715454,1774165849054,-500.0,0.00046575,120]
[408715455,1774165849065,-500.0,0.00046575,120]
[408715456,1774165849075,-500.0,0.00046575,120]
[408715457,1774165849085,-500.0,0.00046575,120]
[408715458,1774165849094,-246.0894193,0.00046575,120]
[408715459,1774165849104,-500.0,0.00046575,2]
[408715460,1774165849114,-500.0,0.00046575,2]
[408715461,1774165849124,-500.0,0.00046575,2]
[408715462,1774165849136,-500.0,0.00046575,2]
[408715463,1774165849147,-500.0,0.00046575,2]
[408715464,1774165849156,-226.99779834,0.00046575,2]
[408715465,1774165849166,-677.22,0.00046575,2]
[408715466,1774165849176,-677.22,0.00046575,2]
[408715467,1774165849186,-677.22,0.00046575,2]
[408715468,1774165849196,-677.22,0.00046575,2]
[408715469,1774165849207,-677.22,0.00046575,2]
[408715470,1774165849217,-677.22,0.00046575,2]
[408715471,1774165849226,-677.22,0.00046575,2]
[408715472,1774165849236,-677.22,0.00046575,2]
[408715473,1774165849246,-677.22,0.00046575,2]
[408715474,1774165849256,-677.22,0.00046575,2]
[408715475,1774165849266,-677.22,0.00046575,2]
[408715476,1774165849276,-677.22,0.00046575,2]
[408715477,1774165849286,-677.22,0.00046575,2]
[408715478,1774165849296,-677.22,0.00046575,2]
[408715479,1774165849308,-677.22,0.00046575,2]
[408715480,1774165849320,-677.22,0.00046575,2]
[408715481,1774165849330,-677.22,0.00046575,2]
[408715482,1774165849340,-677.22,0.00046575,2]
[408715483,1774165849350,-677.22,0.00046575,2]
[408715484,1774165849361,-677.22,0.00046575,2]
[408715485,1774165849372,-677.22,0.00046575,2]
[408715486,1774165849382,-677.22,0.00046575,2]
[408715487,1774165849394,-677.22,0.00046575,2]
[408715488,1774165849407,-677.26279261,0.00046575,2]
[408715489,1774165849418,-275.47,0.00046575,2]
[408715490,1774165849431,-817.13,0.00046575,2]
[408715491,1774165849442,-817.13,0.00046575,2]
[408715492,1774165849451,-817.13,0.00046575,2]
[408715493,1774165849461,-544.77,0.00046575,2]
[408715494,1774165849471,-272.41,0.00046575,2]
[408715495,1774165849481,-544.77,0.00046575,2]
[408715496,1774165849491,-544.77,0.00046575,2]
[408715497,1774165849502,-544.77,0.00046575,2]
[408715498,1774165849512,-500.0,0.00046575,2]
[408715499,1774165849522,-500.91995074,0.00046575,2]
[408715500,1774165849531,-272.41,0.00046575,2]
[408715501,1774165849542,-810.51,0.00046575,2]
[408715502,1774165849551,-810.51,0.00046575,2]
[408715503,1774165849561,-810.51,0.00046575,2]
[408715504,1774165849572,-810.51,0.00046575,2]
[408715505,1774165849582,-810.51,0.00046575,2]
[408715506,1774165849593,-810.51,0.00046575,2]
[408715507,1774165849603,-810.51,0.00046575,2]
[408715508,1774165849614,-810.51,0.00046575,2]
[408715509,1774165849625,-810.51,0.00046575,2]
[408715510,1774165849636,-810.51,0.00046575,2]
[408715511,1774165849646,-810.51,0.00046575,2]
[408715512,1774165849657,-810.51,0.00046575,2]
[408715513,1774165849667,-810.51,0.00046575,2]
[408715514,1774165849678,-810.51,0.00046575,2]
[408715515,1774165849689,-810.51,0.00046575,2]
[408715516,1774165849702,-810.51,0.00046575,2]
[408715517,1774165849712,-810.51,0.00046575,2]
[408715518,1774165849723,-810.51,0.00046575,2]
[408715519,1774165849733,-810.51,0.00046575,2]
[408715520,1774165849745,-810.51,0.00046575,2]
[408715521,1774165849755,-810.51,0.00046575,2]
[408715522,1774165849765,-810.51,0.00046575,2]
[408715523,1774165849777,-810.51,0.00046575,2]
[408715524,1774165849787,-810.51440959,0.00046575,2]
[408715525,1774165849798,-2472.3,0.00046575,2]
[408715526,1774165849808,-2472.3,0.00046575,2]
[408715527,1774165849818,-2472.3,0.00046575,2]
[408715528,1774165849828,-2472.3,0.00046575,2]
[408715529,1774165849841,-2472.3,0.00046575,2]
[408715530,1774165849852,-2472.3,0.00046575,2]
[408715531,1774165849863,-2472.3,0.00046575,2]
[408715532,1774165849873,-2472.3,0.00046575,2]
[408715533,1774165849884,-2472.3,0.00046575,2]
[408715534,1774165849894,-2472.3,0.00046575,2]
[408715535,1774165849904,-2472.3,0.00046575,2]
[408715536,1774165849914,-2472.3,0.00046575,2]
[408715537,1774165849925,-2472.3,0.00046575,2]
[408715538,1774165849936,-2472.3,0.00046575,2]
[408715539,1774165849947,-2472.3,0.00046575,2]
[408715540,1774165849957,-2472.3,0.00046575,2]
[408715541,1774165849968,-2472.3,0.00046575,2]
[408715542,1774165849978,-2472.3,0.00046575,2]
[408715543,1774165849988,-2472.3,0.00046575,2]
[408715544,1774165849999,-2472.3,0.00046575,2]
[408715545,1774165850010,-2472.3,0.00046575,2]
[408715546,1774165850021,-2472.3,0.00046575,2]
[408715547,1774165850032,-2472.3,0.00046575,2]
[408715548,1774165850043,-2472.46,0.00046575,2]
[408715549,1774165850053,-500.0,0.00046575,2]
[408715550,1774165850062,-500.0,0.00046575,2]
[408715551,1774165850072,-500.0,0.00046575,2]
[408715552,1774165850082,-500.0,0.00046575,2]
[408715553,1774165850092,-500.0,0.00046575,2]
[408715554,1774165850102,-500.0,0.00046575,2]
[408715555,1774165850112,-500.0,0.00046575,2]
[408715556,1774165850122,-500.0,0.00046575,2]
[408715557,1774165850132,-500.0,0.00046575,2]
[408715558,1774165850143,-500.0,0.00046575,2]
[408715559,1774165850153,-500.0,0.00046575,2]
[408715560,1774165850163,-500.0,0.00046575,2]
[408715561,1774165850174,-500.0,0.00046575,2]
[408715562,1774165850184,-602.85797467,0.00046575,2]
[408715563,1774165850194,-500.0,0.00046575,2]
[408715564,1774165850203,-500.0,0.00046575,2]
[408715565,1774165850213,-500.0,0.00046575,2]
[408715566,1774165850223,-500.0,0.00046575,2]
[408715567,1774165850233,-500.0,0.00046575,2]
[408715568,1774165850243,-500.0,0.00046575,2]
[408715569,1774165850253,-500.0,0.00046575,2]
[408715570,1774165850263,-500.0,0.00046575,2]
[408715571,1774165850276,-500.0,0.00046575,2]
[408715572,1774165850286,-500.0,0.00046575,2]
[408715573,1774165850296,-500.0,0.00046575,2]
[408715574,1774165850306,-500.0,0.00046575,2]
[408715575,1774165850316,-500.0,0.00046575,2]
[408715576,1774165850326,-500.0,0.00046575,2]
[408715577,1774165850335,-500.0,0.00046575,2]
[408715578,1774165850345,-500.0,0.00046575,2]
[408715579,1774165850355,-500.0,0.00046575,2]
[408715580,1774165850364,-500.0,0.00046575,2]
[408715581,1774165850374,-500.0,0.00046575,2]
[408715582,1774165850384,-500.0,0.00046575,2]
[408715583,1774165850394,-628.2795402,0.00046575,2]
[408715584,1774165850404,-599.85,0.00046575,2]
[408715585,1774165850414,-2357.65,0.00046575,2]
[408715586,1774165850424,-2357.65,0.00046575,2]
[408715587,1774165850434,-2357.65,0.00046575,2]
[408715588,1774165850444,-2357.65,0.00046575,2]
[408715589,1774165850454,-2357.65,0.00046575,2]
[408715590,1774165850464,-2357.65,0.00046575,2]
[408715591,1774165850475,-2357.65,0.00046575,2]
[408715592,1774165850485,-2357.65,0.00046575,2]
[408715593,1774165850495,-2357.65,0.00046575,2]
[408715594,1774165850505,-2357.65,0.00046575,2]
[408715595,1774165850515,-2357.65,0.00046575,2]
[408715596,1774165850524,-2357.65,0.00046575,2]
[408715597,1774165850534,-2357.65,0.00046575,2]
[408715598,1774165850545,-2357.65,0.00046575,2]
[408715599,1774165850555,-2357.65,0.00046575,2]
[408715600,1774165850565,-2357.65,0.00046575,2]
[408715601,1774165850575,-2357.65,0.00046575,2]
[408715602,1774165850585,-2357.65,0.00046575,2]
[408715603,1774165850595,-2357.65,0.00046575,2]
[408715604,1774165850605,-2357.65,0.00046575,2]
[408715605,1774165850614,-2357.65,0.00046575,2]
[408715606,1774165850624,-2357.65,0.00046575,2]
[408715607,1774165850635,-2357.65,0.00046575,2]
[408715608,1774165850646,-2357.71410213,0.00046575,2]
[408715609,1774165850667,-753.09,0.00046575,2]
[408715610,1774165850678,-753.09,0.00046575,2]
[408715611,1774165850690,-753.09,0.00046575,2]
[408715612,1774165850703,-753.09,0.00046575,2]
[408715613,1774165850716,-753.09,0.00046575,2]
[408715614,1774165850728,-753.09,0.00046575,2]
[408715615,1774165850740,-753.09,0.00046575,2]
[408715616,1774165850751,-753.09,0.00046575,2]
[408715617,1774165850761,-753.09,0.00046575,2]
[408715618,1774165850773,-753.09,0.00046575,2]
[408715619,1774165850783,-753.09,0.00046575,2]
[408715620,1774165850793,-753.09,0.00046575,2]
[408715621,1774165850804,-753.09,0.00046575,2]
[408715622,1774165850814,-753.09,0.00046575,2]
[408715623,1774165850825,-753.09,0.00046575,2]
[408715624,1774165850835,-753.09,0.00046575,2]
[408715625,1774165850846,-753.09,0.00046575,2]
[408715626,1774165850856,-753.09,0.00046575,2]
[408715627,1774165850867,-753.09,0.00046575,2]
[408715628,1774165850877,-753.09,0.00046575,2]
[408715629,1774165850888,-753.09,0.00046575,2]
[408715630,1774165850898,-753.09,0.00046575,2]
[408715631,1774165850910,-753.09,0.00046575,2]
[408715632,1774165850922,-753.25509051,0.00046575,2]
[408715633,1774165850934,-500.0,0.00046575,2]
[408715634,1774165850944,-500.0,0.00046575,2]
[408715635,1774165850954,-500.0,0.00046575,2]
[408715636,1774165850965,-500.0,0.00046575,2]
[408715637,1774165850975,-500.0,0.00046575,2]
[408715638,1774165850985,-500.0,0.00046575,2]
[408715639,1774165850995,-500.0,0.00046575,2]
[408715640,1774165851005,-500.0,0.00046575,2]
[408715641,1774165851016,-500.0,0.00046575,2]
[408715642,1774165851026,-500.0,0.00046575,2]
[408715643,1774165851037,-500.0,0.00046575,2]
[408715644,1774165851047,-500.0,0.00046575,2]
[408715645,1774165851058,-500.0,0.00046575,2]
[408715646,1774165851068,-500.0,0.00046575,2]
[408715647,1774165851078,-500.0,0.00046575,2]
[408715648,1774165851089,-500.0,0.00046575,2]
[408715649,1774165851100,-500.0,0.00046575,2]
[408715650,1774165851111,-500.0,0.00046575,2]
[408715651,1774165851121,-268.04135789,0.00046575,2]
[408715652,1774165851132,-500.0,0.00046575,2]
[408715653,1774165851143,-500.0,0.00046575,2]
[408715654,1774165851153,-500.0,0.00046575,2]
[408715655,1774165851164,-500.0,0.00046575,2]
[408715656,1774165851174,-500.0,0.00046575,2]
[408715657,1774165851184,-500.0,0.00046575,2]
[408715658,1774165851194,-265.59899693,0.00046575,2]
[408715659,1774165851205,-300.0,0.00046575,2]
[408715660,1774165851215,-300.0,0.00046575,2]
[408715661,1774165851226,-300.0,0.00046575,2]
[408715662,1774165851236,-300.0,0.00046575,2]
[408715663,1774165851246,-300.0,0.00046575,2]
[408715664,1774165851257,-300.0,0.00046575,2]
[408715665,1774165851269,-300.0,0.00046575,2]
[408715666,1774165851473,-300.0,0.00046575,2]
[408715667,1774165851484,-300.0,0.00046575,2]
[408715668,1774165851494,-300.0,0.00046575,2]
[408715669,1774165851504,-300.0,0.00046575,2]
[408715670,1774165851514,-300.0,0.00046575,2]
[408715671,1774165851524,-300.0,0.00046575,2]
[408715672,1774165851535,-431.61716539,0.00046575,2]
[408715673,1774165851545,-300.0,0.00046575,2]
[408715674,1774165851556,-300.0,0.00046575,2]
[408715675,1774165851566,-300.0,0.00046575,2]
[408715676,1774165851576,-300.0,0.00046575,2]
[408715677,1774165851586,-300.0,0.00046575,2]
[408715678,1774165851596,-300.0,0.00046575,2]
[408715679,1774165851606,-300.0,0.00046575,2]
[408715680,1774165851616,-300.0,0.00046575,2]
[408715681,1774165851626,-300.0,0.00046575,2]
[408715682,1774165851635,-300.0,0.00046575,2]
[408715683,1774165851645,-300.0,0.00046575,2]
[408715684,1774165851655,-300.0,0.00046575,2]
[408715685,1774165851665,-300.0,0.00046575,2]
[408715686,1774165851675,-300.0,0.00046575,2]
[408715687,1774165851684,-300.0,0.00046575,2]
[408715688,1774165851694,-300.0,0.00046575,2]
[408715689,1774165851708,-300.0,0.00046575,2]
[408715690,1774165851718,-300.0,0.00046575,2]
[408715691,1774165851727,-300.0,0.00046575,2]
[408715692,1774165851736,-300.0,0.00046575,2]
[408715693,1774165851747,-300.0,0.00046575,2]
[408715694,1774165851757,-300.0,0.00046575,2]
[408715695,1774165851766,-300.0,0.00046575,2]
[408715696,1774165851777,-300.0,0.00046575,2]
[408715697,1774165851787,-300.0,0.00046575,2]
[408715698,1774165851797,-300.0,0.00046575,2]
[408715699,1774165851807,-300.0,0.00046575,2]
[408715700,1774165851817,-300.0,0.00046575,2]
[408715701,1774165851826,-300.0,0.00046575,2]
[408715702,1774165851835,-300.0,0.00046575,2]
[408715703,1774165851845,-300.0,0.00046575,2]
[408715704,1774165851855,-300.0,0.00046575,2]
[408715705,1774165851865,-300.0,0.00046575,2]
[408715706,1774165851874,-378.47828845,0.00046575,2]
[408715707,1774165851884,-500.0,0.00046575,2]
[408715708,1774165851894,-500.0,0.00046575,2]
[408715709,1774165851904,-500.0,0.00046575,2]
[408715710,1774165851914,-500.0,0.00046575,2]
[408715711,1774165851924,-500.0,0.00046575,2]
[408715712,1774165851934,-500.0,0.00046575,2]
[408715713,1774165851944,-500.0,0.00046575,2]
[408715714,1774165851953,-500.0,0.00046575,2]
[408715715,1774165851963,-500.0,0.00046575,2]
[408715716,1774165851973,-500.0,0.00046575,2]
[408715717,1774165851983,-500.0,0.00046575,2]
[408715718,1774165851993,-500.0,0.00046575,2]
[408715719,1774165852003,-500.0,0.00046575,2]
[408715720,1774165852013,-500.0,0.00046575,2]
[408715721,1774165852023,-500.0,0.00046575,2]
[408715722,1774165852032,-500.0,0.00046575,2]
[408715723,1774165852042,-500.0,0.00046575,2]
[408715724,1774165852052,-326.72,0.00046575,2]
[408715725,1774165852062,-500.0,0.00046575,2]
[408715726,1774165852071,-500.0,0.00046575,2]
[408715727,1774165852081,-500.0,0.00046575,2]
[408715728,1774165852090,-500.0,0.00046575,2]
[408715729,1774165852100,-500.0,0.00046575,2]
[408715730,1774165852110,-500.0,0.00046575,2]
[408715731,1774165852119,-500.0,0.00046575,2]
[408715732,1774165852129,-500.0,0.00046575,2]
[408715733,1774165852139,-500.0,0.00046575,2]
[408715734,1774165852150,-500.0,0.00046575,2]
[408715735,1774165852161,-500.0,0.00046575,2]
[408715736,1774165852171,-500.0,0.00046575,2]
[408715737,1774165852181,-500.0,0.00046575,2]
[408715738,1774165852191,-500.0,0.00046575,2]
[408715739,1774165852201,-500.0,0.00046575,2]
[408715740,1774165852212,-374.65879546,0.00046575,2]
[408715741,1774165852223,-281.9,0.000466,30]
[408715742,1774165852235,-400.0,0.000466,17]
[408715743,1774165852245,-150.0,0.00046671,30]
[408715744,1774165852255,-2143.91,0.0004669,120]
[408715745,1774165852265,-1998.73,0.000467,30]
[408715746,1774165852274,-400.0,0.000467,17]
[408715747,1774165852283,-156.80204225,0.00046729,2]
[408715748,1774165852293,-160.55200172,0.00046779,7]
[408715749,1774165852303,-37118.03,0.000468,7]
[408715750,1774165852313,-400.0,0.000468,17]
[408715751,1774165852322,-326.03032941,0.00046849,100]
[408715752,1774165852332,-200.0,0.00046874,120]
[408715753,1774165852341,-400.0,0.00046874,120]
[408715754,1774165852351,-400.0,0.00046874,120]
[408715755,1774165852360,-618.19,0.00046885,120]
[408715756,1774165852370,-10000.0,0.000469,120]
[408715757,1774165852379,-216.9058418,0.000469,120]
[408715758,1774165852388,-188.71483197,0.000469,90]
[408715759,1774165852398,-471.73,0.000469,30]
[408715760,1774165852407,-900.0,0.000469,17]
[408715761,1774165852417,-231.0,0.0004698,30]
[408715762,1774165852426,-231.0,0.0004698,30]
[408715763,1774165852436,-2631.22030445,0.00046988,120]
[408715764,1774165852446,-1313.58911789,0.00046989,60]
[408715765,1774165852456,-600.0,0.00047,3]
[408715766,1774165852465,-154.7746456,0.00047,2]